bitfinex-derivatives/quotes_SOLF0:USTF0_20251018
["timestamp","ask_amount","ask_price","bid_price","bid_amount"]
[1760773866962,2.82470353,187.32,187.29,2.75]
[1760773871966,5.62470353,187.32,187.29,2.75]
[1760773872166,2.8,187.32,187.29,2.75]
[1760773872369,11.53983399,187.35,187.29,2.75]
[1760773872574,2.82470353,187.35,187.29,2.75]
[1760773873668,2.82470353,187.35,187.3,4.8037]
[1760773873867,2.82470353,187.35,187.31,2.59]
[1760773874073,2.82470353,187.35,187.23,2.82470353]
[1760773874074,2.8,187.34,187.24,2.59]
[1760773874974,2.8,187.34,187.28,4.8043]
[1760773876472,2.8,187.31,187.28,4.8043]
[1760773876773,2.82470353,187.32,187.27,2.59]
[1760773876976,2.8,187.31,187.27,2.59]
[1760773877473,2.8,187.31,187.26,4.8048]
[1760773877673,2.8,187.31,187.27,2.59]
[1760773880674,5.62470353,187.35,187.27,7.3945]
[1760773880873,4.13096243,187.34,187.27,7.3945]
[1760773881064,5.62470353,187.35,187.29,4.804]
[1760773881264,5.62470353,187.35,187.24,2.59]
[1760773881265,2.8,187.35,187.24,2.59]
[1760773881874,4.93171473,187.4,187.32,2.59]
[1760773881875,2.82470353,187.39,187.32,2.59]
[1760773882075,12.87568402,187.38,187.32,2.59]
[1760773882376,11.49424717,187.37,187.33,2.59]
[1760773882572,2.8,187.37,187.31,4.8034]
[1760773882777,2.8,187.37,187.33,2.59]
[1760773883172,2.82470353,187.4,187.3,2.59]
[1760773883372,10.50230263,187.39,187.32,1.80411733]
[1760773883674,4.13419278,187.38,187.35,2.59]
[1760773883977,1.80411733,187.39,187.36,2.59]
[1760773884170,1.80411733,187.39,187.35,2.59]
[1760773884366,1.80411733,187.37,187.32,4.8032]
[1760773884570,1.80411733,187.37,187.3,2.59]
[1760773884571,1.80411733,187.35,187.3,2.59]
[1760773884778,2.8,187.34,187.3,2.59]
[1760773884972,2.8,187.34,187.3,7.3938]
[1760773885277,4.60411733,187.33,187.26,2.59]
[1760773885477,4.60411733,187.31,187.24,2.59]
[1760773885779,2.8,187.3,187.26,4.8049]
[1760773886272,1.80411733,187.31,187.26,4.8049]
[1760773886471,44.66,187.39,186.92,258.46538507]
[1760773886472,2.8,187.28,187.24,7.3953]
[1760773886677,1.80411733,187.25,187.2,2.59]
[1760773886977,1.80411733,187.21,187.15,2.59]
[1760773887372,1.80411733,187.22,187.15,2.59]
[1760773889078,1.80411733,187.22,187.16,4.8074]
[1760773889282,1.80411733,187.22,187.15,2.59]
[1760773891084,1.80411733,187.22,187.18,2.59]
[1760773891986,1.80411733,187.22,187.17,4.807]
[1760773892183,4.60411733,187.22,187.15,7.3977]
[1760773892482,1.80411733,187.18,187.13,66.4134457]
[1760773892784,1.80411733,187.18,187.14,2.59]
[1760773894086,1.80411733,187.18,187.14,7.3977]
[1760773894478,4.60411733,187.18,187.14,7.3977]
[1760773895386,4.60411733,187.18,187.14,4.8077]
[1760773895387,1.80411733,187.16,187.14,4.8077]
[1760773895583,1.80411733,187.16,187.08,44.68]
[1760773895584,4.60411733,187.16,187.12,7.3985]
[1760773895779,4.60411733,187.16,187.08,44.68]
[1760773895780,2.8,187.15,187.08,44.68]
[1760773896085,2.8,187.15,187.09,4.39411733]
[1760773896989,4.60411733,187.16,187.1,4.8087]
[1760773898180,2.8,187.16,187.09,2.59]
[1760773898385,2.8,187.15,187.07,1.80411733]
[1760773901897,2.8,187.15,187.08,4.8095]
[1760773902496,18.8505247,187.19,187.11,4.61411733]
[1760773902794,18.8505247,187.19,187.13,1.80411733]
[1760773902795,2.8,187.19,187.13,1.80411733]
[1760773903193,2.8,187.19,187.13,6.61211733]
[1760773904091,2.8,187.19,187.13,1.80411733]
[1760773904300,2.8,187.18,187.12,1.80411733]
[1760773906302,2.8,187.18,187.12,6.61231733]
[1760773908199,2.8,187.18,187.13,7.558]
[1760773908499,2.79,187.2,187.13,7.558]
[1760773909706,2.79,187.2,187.14,4.8078]
[1760773913712,7.5966,187.2,187.14,4.8078]
[1760773920112,7.5966,187.2,187.14,6.61191733]
[1760773920316,2.79,187.18,187.14,1.80411733]
[1760773920505,2.79,187.18,187.12,6.61251733]
[1760773921512,2.79,187.16,187.09,2.75]
[1760773921710,2.79,187.16,187.1,1.80411733]
[1760773922613,4.59411733,187.16,187.09,2.75]
[1760773923109,9.40171733,187.16,187.09,7.5591]
[1760773928515,4.8078,187.15,187.09,2.75]
[1760773928721,2.7,187.13,187.09,2.75]
[1760773928913,2.7,187.13,187.07,1.80411733]
[1760773929318,2.7,187.13,187.08,2.76]
[1760773929518,2.7,187.13,187.07,1.80411733]
[1760773929714,2.7,187.13,187.01,75.07018535]
[1760773929715,4.16068087,187.2,187.12,4.56411733]
[1760773929915,2.7,187.28,187.18,1.80411733]
[1760773930115,4.12434974,187.27,187.22,2.76]
[1760773930416,1.80411733,187.31,187.23,1.80411733]
[1760773930417,4.12434974,187.26,187.23,1.80411733]
[1760773930610,4.12434974,187.26,187.11,44.62]
[1760773930611,1.80411733,187.33,187.26,2.76]
[1760773930814,4.12905808,187.32,187.27,1.80411733]
[1760773931016,4.12905808,187.31,187.3,2.86]
[1760773931219,4.92683014,187.41,187.31,2.86]
[1760773931416,6.73094747,187.42,187.34,2.86]
[1760773931721,1.80411733,187.42,187.34,2.86]
[1760773931915,1.80411733,187.4,187.32,1.80411733]
[1760773932116,1.80411733,187.4,187.15,74.7862]
[1760773932117,1.80411733,187.38,187.3,2.86]
[1760773932620,2.65,187.37,187.3,2.86]
[1760773932818,1.80411733,187.36,187.29,1.80411733]
[1760773933023,1.80411733,187.36,187.27,1.80411733]
[1760773933320,2.65,187.37,187.27,1.80411733]
[1760773933523,1.80411733,187.36,187.27,1.80411733]
[1760773933932,1.80411733,187.34,187.23,4.8054]
[1760773934117,1.80411733,187.32,187.24,1.80411733]
[1760773934917,1.80411733,187.3,187.22,4.66411733]
[1760773935417,1.80411733,187.3,187.22,9.46991733]
[1760773935616,2.65,187.33,187.22,9.46991733]
[1760773935817,1.80411733,187.32,187.24,1.80411733]
[1760773936017,1.80411733,187.32,187.25,2.86]
[1760773939121,7.4522,187.37,187.28,1.80411733]
[1760773939424,4.92683014,187.42,187.16,62.0]
[1760773939425,1.80411733,187.38,187.31,2.86]
[1760773939630,4.45411733,187.4,187.32,1.80411733]
[1760773939830,4.45411733,187.4,187.33,2.86]
[1760773940123,1.80411733,187.4,187.33,2.86]
[1760773940525,1.80411733,187.41,187.33,2.86]
[1760773941027,1.80411733,187.41,187.34,4.8027]
[1760773941423,1.80411733,187.41,187.34,6.60681733]
[1760773941623,4.45411733,187.43,187.35,2.86]
[1760773942420,4.45411733,187.43,187.35,7.6623]
[1760773943020,2.65,187.43,187.35,7.6623]
[1760773943223,1.80411733,187.42,187.35,7.6623]
[1760773943423,2.65,187.43,187.38,2.86]
[1760773943622,2.65,187.43,187.39,2.86]
[1760773944134,2.65,187.47,187.39,7.6615]
[1760773944326,2.65,187.47,187.39,2.86]
[1760773945625,2.65,187.47,187.4,4.801]
[1760773947932,2.65,187.47,187.41,2.86]
[1760773948923,2.65,187.47,187.4,4.801]
[1760773948924,2.65,187.47,187.38,4.8018]
[1760773949129,2.81819906,187.45,187.37,2.86]
[1760773949933,2.81819906,187.45,187.37,7.662]
[1760773950828,7.4497,187.47,187.29,2.81819906]
[1760773950829,2.81819906,187.42,187.33,2.86]
[1760773951030,5.46819906,187.42,187.33,2.86]
[1760773951931,5.46819906,187.42,187.33,7.6631]
[1760773952528,2.65,187.42,187.33,7.6631]
[1760773952735,2.65,187.42,187.34,2.86]
[1760773953937,2.65,187.42,187.35,4.8025]
[1760773954336,2.65,187.42,187.34,2.86]
[1760773954839,7.451,187.42,187.34,2.86]
[1760773955336,2.81819906,187.4,187.34,2.86]
[1760773956138,2.65,187.42,187.34,2.86]
[1760773956437,2.65,187.42,187.34,7.6628]
[1760773959135,2.65,187.42,187.36,4.8023]
[1760773959335,4.7998,187.46,187.37,2.86]
[1760773959336,2.65,187.45,187.37,2.86]
[1760773960740,2.65,187.43,187.28,65.11465763]
[1760773960942,2.65,187.43,187.31,2.81819906]
[1760773961241,2.65,187.43,187.32,2.74]
[1760773961834,2.65,187.43,187.35,4.8024]
[1760773962037,2.65,187.43,187.36,2.74]
[1760773962338,2.65,187.43,187.36,7.5421]
[1760773962744,7.5598,187.46,187.36,7.5421]
[1760773963639,4.7998,187.46,187.36,7.5421]
[1760773963852,2.76,187.45,187.36,7.5421]
[1760773965444,2.76,187.51,187.38,2.81819906]
[1760773965651,5.57819906,187.51,187.39,2.74]
[1760773965841,2.76,187.47,187.39,2.74]
[1760773966143,2.81819906,187.5,187.4,4.801]
[1760773966448,5.57819906,187.5,187.41,2.74]
[1760773966842,5.57819906,187.5,187.42,4.8006]
[1760773967547,2.76,187.5,187.44,4.8003]
[1760773967743,5.57819906,187.53,187.45,2.74]
[1760773967943,3.93268841,187.56,187.48,2.81819906]
[1760773968250,2.76,187.59,187.51,2.74]
[1760773968846,2.81819906,187.63,187.53,2.74]
[1760773969047,6.75311923,187.63,187.53,2.74]
[1760773969240,2.81819906,187.63,187.53,2.74]
[1760773969940,6.75311923,187.63,187.53,2.74]
[1760773970140,2.76,187.62,187.53,2.74]
[1760773971042,2.76,187.62,187.55,2.74]
[1760773972743,2.81819906,187.6,187.51,2.74]
[1760773972941,2.76,187.59,187.51,2.74]
[1760773974052,2.76,187.59,187.52,4.7982]
[1760773976749,2.76,187.59,187.53,4.7977]
[1760773977745,2.76,187.59,187.55,2.74]
[1760773979248,4.7968,187.58,187.46,2.74]
[1760773979449,6.70000573,187.57,187.46,2.74]
[1760773979755,2.76,187.57,187.46,2.74]
[1760773979952,2.76,187.57,187.51,7.5384]
[1760773980343,7.54668727,187.62,187.51,2.74]
[1760773980344,3.94285858,187.59,187.51,2.74]
[1760773980542,3.94285858,187.6,187.53,7.538]
[1760773980753,2.76,187.61,187.53,7.538]
[1760773981054,3.94384521,187.6,187.53,2.74]
[1760773981252,2.76,187.61,187.53,2.74]
[1760773981452,3.94425391,187.6,187.53,2.74]
[1760773981654,2.76,187.61,187.53,2.74]
[1760773981953,3.94585968,187.6,187.53,2.74]
[1760773982154,10.30668727,187.61,187.53,2.74]
[1760773982456,3.94569417,187.6,187.53,2.74]
[1760773982656,2.76,187.61,187.55,4.7974]
[1760773982849,6.70542861,187.6,187.55,4.7974]
[1760773983046,2.76,187.62,187.55,7.5374]
[1760773983345,3.94820244,187.61,187.55,7.5374]
[1760773983550,6.70820244,187.6,187.55,7.5374]
[1760773983750,2.76,187.6,187.55,7.5374]
[1760773984149,6.67350387,187.62,187.55,7.5374]
[1760773984352,7.54668727,187.59,187.42,62.0]
[1760773984550,2.68,187.54,187.43,2.76]
[1760773984952,6.58961052,187.54,187.43,2.76]
[1760773985250,6.58961052,187.54,187.46,4.7996]
[1760773985452,2.68,187.5,187.43,2.76]
[1760773985753,2.68,187.5,187.33,9.6058]
[1760773985754,7.54668727,187.47,187.4,4.8011]
[1760773985950,7.54668727,187.47,187.38,2.76]
[1760773986357,2.68,187.46,187.38,2.76]
[1760773987558,2.68,187.46,187.4,4.8011]
[1760773987755,2.68,187.46,187.38,2.76]
[1760773987954,2.68,187.46,187.38,7.5616]
[1760773988151,2.68,187.46,187.38,2.76]
[1760773988557,2.68,187.46,187.4,4.8013]
[1760773989560,42.34,187.54,187.41,7.5608]
[1760773989561,7.479,187.5,187.41,7.5608]
[1760773990966,2.72,187.49,187.41,4.8008]
[1760773991955,2.72,187.49,187.4,2.82]
[1760773992968,2.72,187.49,187.43,4.8003]
[1760773994066,2.72,187.49,187.41,4.801]
[1760773994265,2.72,187.46,187.36,2.82]
[1760773995171,2.72,187.46,187.37,4.8019]
[1760773995669,2.72,187.46,187.38,4.8016]
[1760773996072,44.68,187.55,187.36,2.82]
[1760773996073,2.72,187.42,187.36,2.82]
[1760773996570,51.23834806,187.55,187.36,2.82]
[1760773996571,2.72,187.46,187.36,2.82]
[1760773998574,2.72,187.42,187.34,4.8028]
[1760773999469,2.72,187.42,187.36,4.8023]
[1760773999669,2.72,187.46,187.37,2.82]
[1760774000066,2.72,187.46,187.4,4.8012]
[1760774000272,10.26668727,187.5,187.4,2.82]
[1760774000572,2.72,187.5,187.44,4.8003]
[1760774001072,2.72,187.55,187.43,2.82]
[1760774001774,2.72,187.55,187.46,7.6196]
[1760774002168,2.72,187.56,187.46,4.7996]
[1760774002370,2.72,187.55,187.46,4.7996]
[1760774002570,2.72,187.53,187.44,4.8003]
[1760774002865,2.72,187.53,187.33,7.54668727]
[1760774003072,7.54668727,187.46,187.3,9.82780961]
[1760774003375,7.54668727,187.46,187.17,2.82]
[1760774003376,2.72,187.34,187.17,2.82]
[1760774003771,7.5229,187.34,187.21,4.8061]
[1760774004073,7.5229,187.34,187.2,2.82]
[1760774004074,7.54668727,187.33,187.2,2.82]
[1760774004573,2.72,187.34,187.23,7.6255]
[1760774005175,7.54668727,187.32,187.23,2.82]
[1760774005382,17.62,187.37,187.2,4.8063]
[1760774005383,4.60085582,187.3,187.2,4.8063]
[1760774005865,4.60085582,187.3,187.19,2.82]
[1760774006070,2.72,187.29,187.17,4.807]
[1760774006371,4.60085582,187.3,187.15,2.82]
[1760774006372,7.32085582,187.26,187.15,2.82]
[1760774007171,7.32085582,187.26,187.16,4.8074]
[1760774007371,4.9104059,187.38,187.15,2.82]
[1760774007372,2.72,187.34,187.15,2.82]
[1760774007574,4.60085582,187.32,187.15,2.82]
[1760774007774,4.60085582,187.32,187.2,4.8063]
[1760774008172,9.40425582,187.32,187.2,4.8063]
[1760774008472,2.72,187.31,187.2,4.8063]
[1760774008671,2.72,187.31,187.02,74.8372]
[1760774008672,21.24,187.34,187.0,12.95359572]
[1760774008876,4.60085582,187.19,187.03,2.82]
[1760774009069,4.60085582,187.15,187.03,2.82]
[1760774009266,2.72,187.13,186.99,2.82]
[1760774009467,2.72,187.14,186.99,2.82]
[1760774009671,2.72,187.08,186.99,2.82]
[1760774009865,2.72,187.08,186.92,2.82]
[1760774010176,2.72,187.04,186.92,2.82]
[1760774010776,4.60085582,187.02,186.93,4.8133]
[1760774010976,4.60085582,187.03,186.92,2.82]
[1760774011371,4.8087,187.12,186.92,2.82]
[1760774011372,27.24,187.15,186.94,4.60085582]
[1760774011677,2.72,187.12,186.95,2.82]
[1760774011878,2.72,187.25,186.99,2.82]
[1760774012077,2.72,187.15,186.99,2.82]
[1760774012467,2.72,187.15,187.04,4.8104]
[1760774013073,2.72,187.15,187.03,2.82]
[1760774013267,2.72,187.12,187.0,4.8113]
[1760774014572,2.72,187.12,187.03,4.8107]
[1760774016774,7.32085582,187.17,187.06,4.81]
[1760774017074,2.72,187.17,187.06,4.81]
[1760774018374,4.60085582,187.2,187.06,4.81]
[1760774018576,2.72,187.19,187.06,4.81]
[1760774018974,2.72,187.16,187.06,4.81]
[1760774019481,2.72,187.15,187.06,4.81]
[1760774019979,4.60085582,187.17,186.99,4.60085582]
[1760774019980,2.72,187.13,187.02,4.8108]
[1760774020168,2.72,187.12,187.02,4.8108]
[1760774020775,2.72,187.12,187.04,4.8105]
[1760774020971,46.04,187.19,187.03,2.82]
[1760774020972,2.68,187.16,187.03,2.82]
[1760774022079,2.68,187.16,187.06,4.8099]
[1760774024277,2.68,187.16,187.08,4.8094]
[1760774028080,4.097241,187.19,187.09,2.73]
[1760774028380,4.097241,187.19,187.05,4.60085582]
[1760774028381,2.68,187.17,187.04,2.73]
[1760774028580,6.777241,187.17,187.04,2.73]
[1760774029084,6.777241,187.17,187.06,4.8098]
[1760774029284,4.097241,187.16,187.06,4.8098]
[1760774030285,7.4872,187.17,187.06,4.8098]
[1760774030481,2.68,187.15,187.06,4.8098]
[1760774030682,2.68,187.13,187.06,4.8098]
[1760774030887,2.68,187.13,187.04,2.73]
[1760774031090,6.79230624,187.17,187.04,2.73]
[1760774031288,2.68,187.17,187.09,7.5392]
[1760774031488,2.68,187.17,187.09,2.73]
[1760774031889,2.68,187.17,187.08,4.8093]
[1760774031890,4.11316396,187.16,187.08,4.8093]
[1760774032181,2.68,187.17,187.09,2.73]
[1760774032387,4.11562745,187.16,187.09,2.73]
[1760774032588,2.68,187.17,187.1,4.809]
[1760774032786,4.11524727,187.16,187.09,2.73]
[1760774032982,2.68,187.17,187.02,2.73]
[1760774033384,4.12023495,187.16,187.02,2.73]
[1760774033684,2.68,187.17,187.02,2.73]
[1760774033990,4.12639474,187.16,187.08,4.8093]
[1760774034188,2.68,187.17,187.08,4.8093]
[1760774034388,4.12833978,187.16,187.08,4.8093]
[1760774034589,2.68,187.17,187.08,4.8093]
[1760774034890,4.12857606,187.16,187.08,4.8093]
[1760774035187,2.68,187.17,187.08,4.8093]
[1760774035380,4.13243428,187.16,187.08,4.8093]
[1760774035579,2.68,187.14,187.05,4.81]
[1760774035782,2.68,187.12,187.05,4.81]
[1760774036395,4.13077857,187.11,187.05,4.81]
[1760774036590,7.4885,187.12,187.02,7.5408]
[1760774036792,4.13270691,187.11,187.02,7.5408]
[1760774036990,7.4885,187.12,187.02,7.5408]
[1760774037190,2.68,187.09,187.02,7.5408]
[1760774037392,4.13194767,187.08,187.02,7.5408]
[1760774037593,2.68,187.09,187.02,7.5408]
[1760774037786,4.13366868,187.08,187.02,7.5408]
[1760774037992,2.68,187.09,186.94,50.48085582]
[1760774037993,4.13317672,187.07,187.0,4.8115]
[1760774038189,2.68,187.09,187.0,4.8115]
[1760774038388,2.68,187.07,187.0,4.8115]
[1760774038584,4.13257039,187.06,186.98,7.542]
[1760774038790,2.68,187.04,186.98,4.812]
[1760774040393,6.81758429,187.03,186.98,4.812]
[1760774040595,2.68,187.03,186.98,4.812]
[1760774040898,4.14054173,187.02,186.96,4.8126]
[1760774041094,2.68,187.03,186.96,4.8126]
[1760774041291,4.1399523,187.02,186.96,4.8126]
[1760774041489,2.68,187.03,186.96,4.8126]
[1760774041690,167.87363827,187.4,186.94,2.73]
[1760774041691,4.9104059,187.07,186.94,4.60085582]
[1760774041899,4.14228642,187.06,186.95,2.73]
[1760774042093,4.14228642,187.05,186.95,2.73]
[1760774042293,4.9104059,187.1,187.02,4.8109]
[1760774042600,4.1453121,187.09,187.02,4.8109]
[1760774042789,4.1453121,187.08,187.02,4.8109]
[1760774042994,4.1453121,187.07,187.03,2.73]
[1760774043197,4.1453121,187.06,187.04,2.73]
[1760774043397,7.5904059,187.11,187.04,2.73]
[1760774043599,4.14878384,187.1,187.03,4.8105]
[1760774043792,4.14878384,187.09,187.03,4.8105]
[1760774043995,4.14878384,187.08,187.03,7.5405]
[1760774044191,2.68,187.11,187.03,7.5405]
[1760774044396,2.68,187.09,187.01,4.8113]
[1760774044599,4.13416236,187.08,186.99,2.73]
[1760774044897,6.81416236,187.07,186.99,2.73]
[1760774045098,4.13416236,187.06,186.95,2.73]
[1760774045304,6.81416236,187.05,186.95,2.73]
[1760774045500,4.13416236,187.04,186.98,4.8119]
[1760774045702,4.13416236,187.03,186.98,7.5419]
[1760774045896,4.9104059,187.07,186.98,2.73]
[1760774046090,4.14112673,187.06,187.01,7.6112]
[1760774046294,4.14112673,187.05,187.02,2.8]
[1760774046599,4.14112673,187.04,187.02,2.8]
[1760774046904,4.9104059,187.08,187.02,2.8]
[1760774047103,6.82283387,187.07,187.02,2.8]
[1760774047302,9.06323977,187.06,187.02,2.8]
[1760774047496,4.15283387,187.05,187.02,2.8]
[1760774047693,4.15283387,187.04,187.02,2.8]
[1760774047895,4.15283387,187.03,187.02,2.8]
[1760774048494,4.15283387,187.03,187.02,3.86]
[1760774049898,4.9104059,187.08,187.06,7.61]
[1760774050102,4.9104059,187.09,187.04,4.60085582]
[1760774050495,4.9104059,187.09,187.06,2.8]
[1760774050804,2.67,187.16,187.05,2.8]
[1760774050805,4.9104059,187.12,187.05,2.8]
[1760774051204,4.9104059,187.12,187.07,4.8096]
[1760774051400,2.8,187.11,187.07,4.8096]
[1760774051599,4.9104059,187.12,187.07,7.4796]
[1760774051804,2.8,187.11,187.07,4.8096]
[1760774052002,2.8,187.1,187.07,4.8096]
[1760774052498,4.9104059,187.11,187.07,4.8096]
[1760774052806,4.9104059,187.11,187.08,4.8093]
[1760774053006,4.9104059,187.11,187.08,7.4793]
[1760774053207,9.35834806,187.14,187.08,7.4793]
[1760774053208,9.44427262,187.1,187.08,7.4793]
[1760774053397,7.7104059,187.11,187.08,4.8093]
[1760774053601,4.53124913,187.1,187.08,4.8093]
[1760774053797,7.7104059,187.11,187.08,4.8093]
[1760774054001,4.53033837,187.1,187.08,4.8093]
[1760774054198,4.9104059,187.11,187.08,4.8093]
[1760774054403,4.52985487,187.1,187.08,7.4793]
[1760774054708,4.9104059,187.11,187.08,7.4793]
[1760774054902,4.5312262,187.1,187.08,7.4793]
[1760774055210,4.9104059,187.11,187.08,7.4793]
[1760774055410,4.53397111,187.1,187.08,7.4793]
[1760774055608,4.9104059,187.11,187.08,7.4793]
[1760774055910,4.53577319,187.1,187.08,7.4793]
[1760774056110,4.9104059,187.11,187.08,7.4793]
[1760774056407,4.53473188,187.1,187.08,4.8093]
[1760774056609,2.8,187.1,187.06,4.81]
[1760774057805,9.44664245,187.09,187.0,2.67]
[1760774058109,4.53623655,187.08,187.0,2.67]
[1760774058310,4.9104059,187.1,187.0,2.67]
[1760774058511,2.8,187.08,187.02,4.811]
[1760774058907,2.8,187.06,187.02,4.811]
[1760774059102,2.8,187.07,187.02,4.811]
[1760774059307,4.53643997,187.06,187.0,7.4815]
[1760774059509,2.8,187.07,187.0,4.8115]
[1760774061209,2.8,187.07,186.98,4.60085582]
[1760774061210,7.7104059,187.09,186.99,2.67]
[1760774061401,2.8,187.09,186.99,2.67]
[1760774061907,4.06192684,187.08,187.03,4.8105]
[1760774062107,4.06192684,187.07,187.03,4.8105]
[1760774062405,2.8,187.11,187.0,2.67]
[1760774062705,4.06270279,187.1,187.02,4.8109]
[1760774062914,4.06270279,187.09,187.02,4.8109]
[1760774063210,2.8,187.11,187.03,4.8106]
[1760774063405,4.06186008,187.1,187.03,4.8106]
[1760774063602,2.8,187.11,187.03,4.8106]
[1760774063806,4.06186917,187.1,187.03,4.8106]
[1760774064008,2.8,187.11,187.03,4.8106]
[1760774064206,2.8,187.11,187.06,2.67]
[1760774064405,2.8,187.14,186.99,2.67]
[1760774064609,2.8,187.12,187.03,4.8108]
[1760774064811,4.05861992,187.11,187.0,2.67]
[1760774065002,2.8,187.12,187.0,2.67]
[1760774065414,2.8,187.12,187.06,4.81]
[1760774066911,2.8,187.12,187.04,7.4805]
[1760774067313,2.8,187.16,187.04,2.67]
[1760774067514,4.05838912,187.15,187.04,2.67]
[1760774067809,4.05838912,187.14,187.08,4.8093]
[1760774068015,4.05838912,187.13,187.09,2.67]
[1760774068211,7.6077,187.16,187.09,2.67]
[1760774068410,4.05911874,187.15,187.09,2.67]
[1760774068713,6.85911874,187.14,187.09,2.67]
[1760774068914,4.05911874,187.13,187.09,2.67]
[1760774069108,2.8,187.13,187.09,2.67]
[1760774072111,7.74728537,187.18,187.09,2.67]
[1760774072309,4.05521707,187.17,187.09,2.67]
[1760774072509,2.8,187.18,187.09,2.67]
[1760774072713,4.05447437,187.17,187.09,2.67]
[1760774072920,2.8,187.18,187.09,2.67]
[1760774073216,4.05415529,187.17,187.09,2.67]
[1760774073410,2.8,187.18,187.09,2.67]
[1760774073613,4.05301896,187.17,187.09,2.67]
[1760774073913,2.8,187.18,187.09,2.67]
[1760774074114,4.05224447,187.17,187.09,2.67]
[1760774074309,7.58199461,187.23,187.09,2.67]
[1760774074310,2.8,187.2,187.09,2.67]
[1760774074508,2.8,187.18,187.09,2.67]
[1760774074911,2.8,187.16,187.03,2.67]
[1760774075613,2.8,187.16,187.02,2.67]
[1760774078009,2.8,187.16,187.09,4.809]
[1760774078207,2.8,187.16,187.1,2.67]
[1760774080219,2.8,187.16,187.12,4.8083]
[1760774080416,2.8,187.17,187.12,4.8083]
[1760774080611,2.8,187.17,187.1,4.8089]
[1760774080815,2.8,187.2,187.07,2.67]
[1760774081120,2.83,187.14,187.08,4.8094]
[1760774082809,2.83,187.13,187.06,4.81]
[1760774083319,2.83,187.13,187.05,2.82]
[1760774083320,2.83,187.13,187.07,4.8096]
[1760774086921,2.83,187.13,187.05,7.6302]
[1760774087112,2.78,187.13,187.05,7.6302]
[1760774087311,2.78,187.13,186.98,17.54552994]
[1760774087312,2.78,187.11,186.98,2.75]
[1760774087522,2.78,187.09,186.98,2.75]
[1760774087717,8.57873662,187.08,186.98,2.75]
[1760774087919,4.61963983,187.07,186.98,2.75]
[1760774088119,2.78,187.09,186.98,2.75]
[1760774088320,8.65385011,187.08,186.98,2.75]
[1760774088522,4.61956765,187.07,186.98,2.75]
[1760774088719,2.78,187.09,186.98,2.75]
[1760774088915,8.65385011,187.08,186.98,2.75]
[1760774089222,2.78,187.09,186.98,2.75]
[1760774089223,4.61956765,187.07,187.0,4.8114]
[1760774089423,7.5895,187.09,187.0,4.8114]
[1760774089623,8.65241369,187.08,187.0,4.8114]
[1760774089823,4.61880219,187.07,187.0,4.8114]
[1760774090023,7.5895,187.09,187.0,4.8114]
[1760774090224,8.67193622,187.08,187.0,4.8114]
[1760774090426,4.63846482,187.07,187.0,4.8114]
[1760774090723,7.5895,187.09,187.0,4.8114]
[1760774091022,8.6732474,187.08,187.0,4.8114]
[1760774091324,4.63958499,187.07,187.0,4.8114]
[1760774091523,7.5895,187.09,187.0,4.8114]
[1760774091719,8.67453756,187.08,187.0,4.8114]